bitfinex-derivatives/quotes_BTCF0:USTF0_20250803
["timestamp","ask_amount","ask_price","bid_price","bid_amount"]
[1754198404607,0.58514039,113590.0,113580.0,0.657353]
[1754198404915,0.58514039,113590.0,113580.0,0.94538589]
[1754198408303,0.58514039,113590.0,113580.0,0.657353]
[1754198408508,0.58514039,113590.0,113580.0,0.94538589]
[1754198411312,0.40904289,113590.0,113580.0,0.94538589]
[1754198411513,0.003,113590.0,113580.0,1.23341878]
[1754198412913,0.001,113590.0,113580.0,1.23341878]
[1754198413113,0.002,113590.0,113580.0,1.23341878]
[1754198414922,0.001,113590.0,113580.0,1.23341878]
[1754198415120,0.003,113590.0,113580.0,1.23341878]
[1754198445946,0.003,113590.0,113580.0,0.657353]
[1754198446139,0.003,113590.0,113580.0,1.23341878]
[1754198448651,0.003,113590.0,113580.0,0.657353]
[1754198448851,0.003,113590.0,113580.0,1.23341878]
[1754198450650,0.003,113590.0,113580.0,0.87261878]
[1754198450843,0.003,113590.0,113580.0,1.23341878]
[1754198456056,0.003,113590.0,113580.0,0.87261878]
[1754198456254,0.003,113590.0,113580.0,1.23341878]
[1754198458152,0.003,113590.0,113580.0,0.87261878]
[1754198458356,0.003,113590.0,113580.0,1.23341878]
[1754198465066,0.003,113590.0,113580.0,0.87261878]
[1754198465266,0.003,113590.0,113580.0,1.23341878]
[1754198470362,0.003,113590.0,113580.0,0.87261878]
[1754198470567,0.003,113590.0,113580.0,1.23341878]
[1754198482576,0.003,113590.0,113580.0,0.87261878]
[1754198482772,0.003,113590.0,113580.0,1.23341878]
[1754198486976,0.003,113590.0,113580.0,0.87261878]
[1754198487182,0.003,113590.0,113580.0,1.23341878]
[1754198487984,0.003,113590.0,113580.0,0.87261878]
[1754198488175,0.003,113590.0,113580.0,1.23341878]
[1754198489283,0.003,113590.0,113580.0,0.87261878]
[1754198489475,0.003,113590.0,113580.0,1.23341878]
[1754198494086,0.003,113590.0,113580.0,0.87261878]
[1754198494384,0.003,113590.0,113580.0,1.23341878]
[1754198495989,0.003,113590.0,113580.0,1.25127956]
[1754198498189,0.002,113590.0,113580.0,1.25127956]
[1754198517904,0.002,113590.0,113580.0,0.89047956]
[1754198518106,0.002,113590.0,113580.0,1.25127956]
[1754198550545,0.92786539,113620.0,113580.0,1.25127956]
[1754198550546,0.94315579,113620.0,113610.0,0.2942763]
[1754198550850,0.94315579,113620.0,113610.0,0.84942919]
[1754198551738,0.94315579,113620.0,113610.0,0.85831861]
[1754198552342,0.94815579,113620.0,113610.0,0.85831861]
[1754198555838,0.94815579,113620.0,113610.0,0.92722273]
[1754198556645,0.58735579,113620.0,113610.0,0.92722273]
[1754198557145,0.58535579,113620.0,113610.0,0.92722273]
[1754198557343,0.2973229,113620.0,113610.0,0.92722273]
[1754198558138,0.2963229,113620.0,113610.0,0.92722273]
[1754198558341,0.58435579,113620.0,113610.0,0.92722273]
[1754198564051,0.2963229,113620.0,113610.0,0.92722273]
[1754198564250,0.58435579,113620.0,113610.0,0.92722273]
[1754198564851,0.2963229,113620.0,113610.0,0.92722273]
[1754198565052,0.58435579,113620.0,113610.0,0.92722273]
[1754198572456,0.2963229,113620.0,113610.0,0.92722273]
[1754198572655,0.58435579,113620.0,113610.0,0.92722273]
[1754198575454,0.2963229,113620.0,113610.0,0.92722273]
[1754198576060,0.58435579,113620.0,113610.0,0.92722273]
[1754198576356,0.2963229,113620.0,113610.0,0.92722273]
[1754198576558,0.2493529,113620.0,113610.0,0.92722273]
[1754198576757,0.2813829,113620.0,113610.0,0.92722273]
[1754198576957,0.2963229,113620.0,113610.0,0.92722273]
[1754198577164,0.2963229,113620.0,113610.0,1.28802273]
[1754198579262,0.1780629,113620.0,113610.0,1.28802273]
[1754198579759,0.2015329,113620.0,113610.0,1.28802273]
[1754198579960,0.2599029,113620.0,113610.0,1.28802273]
[1754198580164,0.2743429,113620.0,113610.0,1.28802273]
[1754198580562,0.02848,113620.0,113610.0,1.28802273]
[1754198580866,0.02848,113620.0,113610.0,1.57605562]
[1754198582064,0.204531,113620.0,113610.0,1.57605562]
[1754198582669,0.228001,113620.0,113610.0,1.57605562]
[1754198582970,0.259891,113620.0,113610.0,1.57605562]
[1754198583172,0.259891,113620.0,113610.0,1.28802273]
[1754198584765,0.002,113620.0,113610.0,1.28802273]
[1754198585165,0.002,113620.0,113610.0,1.57605562]
[1754198595781,0.178051,113620.0,113610.0,1.57605562]
[1754198596678,0.002,113620.0,113610.0,1.57605562]
[1754198603084,0.1780511,113620.0,113610.0,1.57605562]
[1754198611186,0.002,113620.0,113610.0,1.57605562]
[1754198615280,1.02900349,113630.0,113620.0,0.176051]
[1754198615486,1.02900349,113630.0,113620.0,0.58024389]
[1754198615686,0.7409706,113630.0,113620.0,0.58024389]
[1754198615984,1.02900349,113630.0,113620.0,0.58024389]
[1754198617887,1.03100349,113630.0,113620.0,0.58024389]
[1754198618891,0.67020349,113630.0,113620.0,0.58024389]
[1754198619091,0.3821706,113630.0,113620.0,0.58024389]
[1754198619292,0.67020349,113630.0,113620.0,0.58024389]
[1754198619585,0.3821706,113630.0,113620.0,0.58024389]
[1754198619796,0.3381583,113630.0,113620.0,0.58024389]
[1754198619986,0.2465283,113630.0,113620.0,0.58024389]
[1754198620191,0.1780476,113630.0,113620.0,0.58024389]
[1754198620393,0.2812976,113630.0,113620.0,0.58024389]
[1754198620594,0.2950876,113630.0,113620.0,0.58024389]
[1754198621496,0.58312049,113630.0,113620.0,0.58024389]
[1754198621687,0.2950876,113630.0,113620.0,0.58024389]
[1754198621889,0.58312049,113630.0,113620.0,0.58024389]
[1754198622593,0.2950876,113630.0,113620.0,0.58024389]
[1754198622895,0.58312049,113630.0,113620.0,0.58024389]
[1754198624701,0.58312049,113630.0,113620.0,0.292211]
[1754198624998,0.58312049,113630.0,113620.0,0.58024389]
[1754198626199,0.2950876,113630.0,113620.0,0.58024389]
[1754198626398,0.58312049,113630.0,113620.0,0.58024389]
[1754198626599,0.2950876,113630.0,113620.0,0.58024389]
[1754198626811,0.58312049,113630.0,113620.0,0.58024389]
[1754198629605,0.2950876,113630.0,113620.0,0.58024389]
[1754198629804,0.58312049,113630.0,113620.0,0.58024389]
[1754198631304,0.58312049,113630.0,113620.0,0.292211]
[1754198631503,0.58312049,113630.0,113620.0,0.58024389]
[1754198631804,0.1780476,113630.0,113620.0,0.58024389]
[1754198632005,0.2007676,113630.0,113620.0,0.58024389]
[1754198632209,0.2594676,113630.0,113620.0,0.58024389]
[1754198632503,0.2950876,113630.0,113620.0,0.58024389]
[1754198637006,0.2812976,113630.0,113620.0,0.94104389]
[1754198637305,0.2025176,113630.0,113620.0,0.94104389]
[1754198637507,0.002,113630.0,113620.0,0.94104389]
[1754198638310,0.1780355,113630.0,113620.0,0.94104389]
[1754198642412,0.1770355,113630.0,113620.0,0.94104389]
[1754198643012,0.1760355,113630.0,113620.0,0.94104389]
[1754198643206,0.1770355,113630.0,113620.0,0.94104389]
[1754198648916,0.2014055,113630.0,113620.0,0.94104389]
[1754198649213,0.2592655,113630.0,113620.0,0.94104389]
[1754198650011,0.2592655,113630.0,113620.0,0.58024389]
[1754198650219,0.2592655,113630.0,113620.0,0.94104389]
[1754198651216,0.2258455,113630.0,113620.0,0.94104389]
[1754198653816,0.2592655,113630.0,113620.0,0.94104389]
[1754198659414,0.2739355,113630.0,113620.0,0.94104389]
[1754198659918,0.2958555,113630.0,113620.0,0.94104389]
[1754198667722,0.11982,113630.0,113620.0,0.94104389]
[1754198668418,0.10515,113630.0,113620.0,0.94104389]
[1754198668624,0.2811854,113630.0,113620.0,0.94104389]
[1754198669414,0.2950554,113630.0,113620.0,0.94104389]
[1754198670314,0.2950554,113630.0,113620.0,1.20748389]
[1754198674519,0.11902,113630.0,113620.0,1.20748389]
[1754198677226,0.11902,113630.0,113620.0,1.20744389]
[1754198679831,0.2950552,113630.0,113620.0,1.20744389]
[1754198681633,0.2950552,113630.0,113620.0,0.919411]
[1754198681926,0.2950552,113630.0,113620.0,1.20744389]
[1754198685134,0.2950552,113630.0,113620.0,0.919411]
[1754198685433,0.2950552,113630.0,113620.0,1.20744389]
[1754198685831,0.2950552,113630.0,113620.0,0.94104389]
[1754198686031,0.2950552,113630.0,113620.0,1.20740389]
[1754198701951,0.2950552,113630.0,113620.0,0.919331]
[1754198702155,0.2950552,113630.0,113620.0,1.20736389]
[1754198705452,0.2950552,113630.0,113620.0,0.919331]
[1754198705648,0.2950552,113630.0,113620.0,1.20736389]
[1754198706153,0.2950552,113630.0,113620.0,0.919331]
[1754198706455,0.2950552,113630.0,113620.0,1.20736389]
[1754198717663,0.2950552,113630.0,113620.0,0.84656389]
[1754198717860,0.2950552,113630.0,113620.0,1.20736389]
[1754198722662,0.2950552,113630.0,113620.0,0.94104389]
[1754198722863,0.2950552,113630.0,113620.0,1.20728389]
[1754198725562,0.2811852,113630.0,113620.0,1.20728389]
[1754198730262,0.10515,113630.0,113620.0,1.20728389]
[1754198730467,0.001,113630.0,113620.0,1.20728389]
[1754198736668,0.607906,113660.0,113650.0,0.176004]
[1754198736974,0.5367885,113660.0,113650.0,0.58472689]
[1754198737164,0.3608,113660.0,113650.0,0.58472689]
[1754198738474,0.5397885,113660.0,113650.0,0.58472689]
[1754198739878,0.3638,113660.0,113650.0,0.58472689]
[1754198740080,0.003,113660.0,113650.0,0.94552689]
[1754198741678,0.1789885,113660.0,113650.0,0.94552689]
[1754198742677,0.003,113660.0,113650.0,0.94552689]
[1754198743577,0.003,113660.0,113650.0,0.95440993]
[1754198744880,0.67247489,113670.0,113660.0,0.2250785]
[1754198745085,0.67247489,113670.0,113660.0,0.58471139]
[1754198745679,0.2964538,113670.0,113660.0,0.58471139]
[1754198745879,0.2819738,113670.0,113660.0,0.58471139]
[1754198746586,0.2849738,113670.0,113660.0,0.58471139]
[1754198747280,0.2994538,113670.0,113660.0,0.58471139]
[1754198747482,0.2528038,113670.0,113660.0,0.58471139]
[1754198747879,0.2849738,113670.0,113660.0,0.58471139]
[1754198748588,0.2819738,113670.0,113660.0,0.58471139]
[1754198748890,0.2024438,113670.0,113660.0,0.58471139]
[1754198749285,0.2606738,113670.0,113660.0,0.58471139]
[1754198749587,0.2984538,113670.0,113660.0,0.58471139]
[1754198753892,0.2984538,113670.0,113660.0,0.2966785]
[1754198754092,0.2984538,113670.0,113660.0,0.58471139]
[1754198758809,0.2984538,113670.0,113660.0,0.2966785]
[1754198758996,0.2984538,113670.0,113660.0,0.58471139]
[1754198760104,0.2984538,113670.0,113660.0,0.2966785]
[1754198760300,0.2984538,113670.0,113660.0,0.58471139]
[1754198765309,0.2984538,113670.0,113660.0,0.2966785]
[1754198765511,0.2984538,113670.0,113660.0,0.58471139]
[1754198765911,0.58648669,113670.0,113660.0,0.58471139]
[1754198768420,0.2984538,113670.0,113660.0,0.58471139]
[1754198771416,0.2984538,113670.0,113660.0,0.2966785]
[1754198771617,0.2984538,113670.0,113660.0,0.58471139]
[1754198772822,0.2984538,113670.0,113660.0,0.2966785]
[1754198773119,0.2984538,113670.0,113660.0,0.58471139]
[1754198773624,0.2984538,113670.0,113660.0,0.2966785]
[1754198773817,0.2984538,113670.0,113660.0,0.58471139]
[1754198774821,0.58648669,113670.0,113660.0,0.58471139]
[1754198775524,0.2984538,113670.0,113660.0,0.58471139]
[1754198775819,0.2974538,113670.0,113660.0,0.58471139]
[1754198777928,0.2964538,113670.0,113660.0,0.58471139]
[1754198778130,0.2984538,113670.0,113660.0,0.58471139]
[1754198778926,0.2964538,113670.0,113660.0,0.58471139]
[1754198779128,0.2974538,113670.0,113660.0,0.58471139]
[1754198779727,0.2964538,113670.0,113660.0,0.58471139]
[1754198780026,0.2984538,113670.0,113660.0,0.58471139]
[1754198787236,0.12247,113670.0,113660.0,0.58471139]
[1754198787427,0.10799,113670.0,113660.0,0.94551139]
[1754198788833,0.283963,113670.0,113660.0,0.94551139]
[1754198790033,0.10799,113670.0,113660.0,0.94551139]
[1754198791237,0.283963,113670.0,113660.0,0.94551139]
[1754198791636,0.297983,113670.0,113660.0,0.94551139]
[1754198795536,0.297983,113670.0,113660.0,0.6574785]
[1754198795737,0.297983,113670.0,113660.0,0.94551139]
[1754198801737,0.297983,113670.0,113660.0,0.58471139]
[1754198803138,0.05136,113670.0,113660.0,0.58471139]
[1754198803350,0.002,113670.0,113660.0,0.94551139]
[1754198804438,0.002,113670.0,113660.0,0.6574785]
[1754198804641,0.002,113670.0,113660.0,0.94551139]
[1754198808143,0.002,113670.0,113660.0,1.23354428]
[1754198808350,0.002,113670.0,113660.0,0.94551139]
[1754198813645,0.2963232,113670.0,113660.0,0.94551139]
[1754198817056,0.2963232,113670.0,113660.0,0.6574785]
[1754198817351,0.2963232,113670.0,113660.0,0.94551139]
[1754198818941,0.2823032,113670.0,113660.0,0.94551139]
[1754198819141,0.2485532,113670.0,113660.0,0.94551139]
[1754198824852,0.2485532,113670.0,113660.0,0.6574785]
[1754198825056,0.2485532,113670.0,113660.0,0.94551139]
[1754198826848,0.07258,113670.0,113660.0,0.94551139]
[1754198827043,0.2485531,113670.0,113660.0,0.94551139]
[1754198828947,0.07258,113670.0,113660.0,0.94551139]
[1754198830058,0.07058,113670.0,113660.0,0.94551139]
[1754198830851,0.07158,113670.0,113660.0,0.94551139]
[1754198831755,0.07158,113670.0,113660.0,0.6574785]
[1754198831956,0.07158,113670.0,113660.0,0.94551139]
[1754198833155,0.04881,113670.0,113660.0,0.94551139]
[1754198833658,0.1769731,113670.0,113660.0,0.94551139]
[1754198836652,0.1769731,113670.0,113660.0,0.58471139]
[1754198836960,0.1769731,113670.0,113660.0,0.94551139]
[1754198841359,0.001,113670.0,113660.0,0.94551139]
[1754198849475,0.001,113670.0,113660.0,0.6574785]
[1754198849664,0.176973,113670.0,113660.0,0.94551139]
[1754198850066,0.176973,113670.0,113660.0,0.6574785]
[1754198850262,0.294243,113670.0,113660.0,0.54652139]
[1754198850567,0.294243,113670.0,113660.0,0.58470139]
[1754198857676,0.294243,113670.0,113660.0,0.2966685]
[1754198857877,0.294243,113670.0,113660.0,0.58470139]
[1754198860479,0.294243,113670.0,113660.0,0.2966685]
[1754198860680,0.294243,113670.0,113660.0,0.58470139]
[1754198861979,0.257213,113670.0,113660.0,0.58470139]
[1754198862180,0.001,113670.0,113660.0,0.58470139]
[1754198863373,0.001,113670.0,113660.0,0.94550139]
[1754198865180,0.176973,113670.0,113660.0,0.58470139]
[1754198866078,0.176973,113670.0,113660.0,0.2966685]
[1754198866279,0.199983,113670.0,113660.0,0.58470139]
[1754198867485,0.176973,113670.0,113660.0,0.58470139]
[1754198869184,0.176973,113670.0,113660.0,0.2966685]
[1754198869386,0.232963,113670.0,113660.0,0.58470139]
[1754198869984,0.199983,113670.0,113660.0,0.58470139]
[1754198871279,0.225583,113670.0,113660.0,0.58470139]
[1754198871582,0.258563,113670.0,113660.0,0.58470139]
[1754198879094,0.176973,113670.0,113660.0,0.58470139]
[1754198880694,0.199863,113670.0,113660.0,0.58470139]
[1754198881294,0.257603,113670.0,113660.0,0.58470139]
[1754198887102,0.225393,113670.0,113660.0,0.58470139]
[1754198887401,0.176973,113670.0,113660.0,0.58470139]
[1754198889804,0.199863,113670.0,113660.0,0.58470139]
[1754198890795,0.199863,113670.0,113660.0,0.94550139]
[1754198892906,0.199863,113670.0,113660.0,0.6574685]
[1754198893102,0.199863,113670.0,113660.0,0.94550139]
[1754198893709,0.02389,113670.0,113660.0,0.94550139]
[1754198895312,0.001,113670.0,113660.0,1.23353428]
[1754198895511,0.001,113670.0,113660.0,0.94550139]
[1754198896305,0.001,113670.0,113660.0,1.23353428]
[1754198905308,0.02389,113670.0,113660.0,1.23353428]
[1754198906114,0.001,113670.0,113660.0,1.23353428]
[1754198911622,0.5807388,113690.0,113680.0,0.58169049]
[1754198912822,0.5837388,113690.0,113680.0,0.58169049]
[1754198913317,0.6069688,113690.0,113680.0,0.58169049]
[1754198913718,0.6069688,113690.0,113680.0,0.65099133]
[1754198914214,0.2364921,113690.0,113680.0,0.65099133]
[1754198914718,0.2991621,113690.0,113680.0,0.65099133]
[1754198915121,0.94799499,113690.0,113680.0,0.65099133]
[1754198915628,0.6599621,113690.0,113680.0,0.65099133]
[1754198920126,0.6569621,113690.0,113680.0,0.65099133]
[1754198920317,0.6589621,113690.0,113680.0,0.65099133]
[1754198926430,0.6589621,113690.0,113680.0,0.36295844]
[1754198926630,0.6589621,113690.0,113680.0,0.65099133]
[1754198938246,0.6589621,113690.0,113680.0,0.36295844]
[1754198938451,0.6589621,113690.0,113680.0,0.65099133]
[1754198940045,0.2981621,113690.0,113680.0,0.65099133]
[1754198940240,0.6589621,113690.0,113680.0,0.65099133]
[1754198941351,0.2981621,113690.0,113680.0,0.65099133]
[1754198941552,0.6589621,113690.0,113680.0,0.65099133]
[1754198951348,0.2981621,113690.0,113680.0,0.65099133]
[1754198951552,0.6589621,113690.0,113680.0,0.65099133]
[1754198972669,0.2981621,113690.0,113680.0,0.65099133]
[1754198972877,0.6589621,113690.0,113680.0,0.65099133]
[1754198974072,0.2981621,113690.0,113680.0,0.65099133]
[1754198974274,0.6589621,113690.0,113680.0,0.65099133]
[1754198981277,0.2981621,113690.0,113680.0,0.65099133]
[1754198981582,0.6589621,113690.0,113680.0,0.65099133]
[1754198994589,0.6589621,113690.0,113680.0,0.36295844]
[1754198994782,0.6589621,113690.0,113680.0,0.65099133]
[1754198996089,0.2981621,113690.0,113680.0,0.65099133]
[1754198996280,0.6589621,113690.0,113680.0,0.43801373]
[1754198996486,0.94699499,113690.0,113680.0,0.35733373]
[1754198997184,0.94699499,113690.0,113680.0,0.06930084]
[1754198997380,0.1759576,113680.0,113670.0,0.07033]
[1754198997588,0.94412049,113680.0,113670.0,0.00996]
[1754198997790,0.94412049,113680.0,113670.0,0.29799289]
[1754198998590,0.94512049,113680.0,113670.0,0.29799289]
[1754198999192,0.94512049,113680.0,113670.0,0.33053289]
[1754199000486,0.94512049,113680.0,113670.0,0.40203051]
[1754199001091,0.94512049,113680.0,113670.0,0.44138051]
[1754199001290,0.94512049,113680.0,113670.0,0.45517051]
[1754199001993,0.94512049,113680.0,113670.0,0.35953051]
[1754199002388,0.6570876,113680.0,113670.0,0.35953051]
[1754199002592,0.94512049,113680.0,113670.0,0.07149762]
[1754199002798,0.2946883,113660.0,113650.0,0.90258583]
[1754199004696,0.2956883,113660.0,113650.0,0.90258583]
[1754199005399,0.2956883,113660.0,113650.0,0.90358583]
[1754199005595,0.2956883,113660.0,113650.0,0.97242926]
[1754199006199,0.2956883,113660.0,113650.0,0.97142926]
[1754199006400,0.2956883,113660.0,113650.0,0.97242926]
[1754199007392,0.2956883,113660.0,113650.0,0.68439637]
[1754199007597,0.2956883,113660.0,113650.0,0.97242926]
[1754199011721,0.2956883,113660.0,113650.0,0.70666926]
[1754199012016,0.2956883,113660.0,113650.0,0.41863637]
[1754199012314,0.2956883,113660.0,113650.0,0.70666926]
[1754199016420,0.94452119,113660.0,113650.0,0.70666926]
[1754199016905,0.6564883,113660.0,113650.0,0.70666926]
[1754199017723,0.6564883,113660.0,113650.0,0.41863637]
[1754199018017,0.6564883,113660.0,113650.0,0.70666926]
[1754199021012,0.94452119,113660.0,113650.0,0.43948632]
[1754199021221,0.94452119,113660.0,113650.0,0.65392022]
[1754199040021,0.58372119,113660.0,113650.0,0.65392022]
[1754199040223,0.94452119,113660.0,113650.0,0.65392022]
[1754199040426,0.6564883,113660.0,113650.0,0.36588733]
[1754199040718,0.94452119,113660.0,113650.0,0.65392022]
[1754199043136,0.58372119,113660.0,113650.0,0.65392022]
[1754199043325,0.94452119,113660.0,113650.0,0.65392022]
[1754199046337,0.6564883,113660.0,113650.0,0.65392022]
[1754199046531,0.94452119,113660.0,113650.0,0.65392022]
[1754199047332,0.6564883,113660.0,113650.0,0.65392022]
[1754199047538,0.94452119,113660.0,113650.0,0.65392022]
[1754199048442,0.94452119,113660.0,113650.0,0.36588733]
[1754199048637,0.94452119,113660.0,113650.0,0.65392022]
[1754199054840,0.94452119,113660.0,113650.0,0.36588733]
[1754199055046,0.94452119,113660.0,113650.0,0.65392022]
[1754199055746,0.6564883,113660.0,113650.0,0.65392022]
[1754199055946,0.94452119,113660.0,113650.0,0.65392022]
[1754199057950,0.6564883,113660.0,113650.0,0.65392022]
[1754199058156,0.94452119,113660.0,113650.0,0.65392022]
[1754199058649,0.6564883,113660.0,113650.0,0.65392022]
[1754199062052,0.2816183,113660.0,113650.0,0.65392022]
[1754199062242,0.2960283,113660.0,113650.0,0.65392022]
[1754199065252,0.2477383,113660.0,113650.0,0.65392022]
[1754199065451,0.001,113660.0,113650.0,1.01472022]
[1754199065656,0.1769884,113660.0,113650.0,1.01472022]
[1754199074151,0.2014984,113660.0,113650.0,0.65392022]
[1754199076757,0.1769884,113660.0,113650.0,0.65392022]
[1754199083672,0.2014984,113660.0,113650.0,0.65392022]
[1754199086375,0.2014984,113660.0,113650.0,1.01472022]
[1754199086766,0.001,113660.0,113650.0,1.01472022]
[1754199100183,0.001,113660.0,113650.0,0.65392022]
[1754199100377,0.001,113660.0,113650.0,1.37552022]
[1754199104686,0.001,113660.0,113650.0,0.65392022]
[1754199104985,0.001,113660.0,113650.0,1.37552022]
[1754199106086,0.001,113660.0,113650.0,1.08748733]
[1754199106391,0.001,113660.0,113650.0,1.37552022]
[1754199106588,0.2954684,113660.0,113650.0,1.35227733]
[1754199106777,0.2954684,113660.0,113650.0,1.37451022]
[1754199106981,0.2954684,113660.0,113650.0,1.64039022]
[1754199107892,0.2954684,113660.0,113650.0,1.35235733]
[1754199108091,0.2954684,113660.0,113650.0,1.64039022]
[1754199108392,0.2954684,113660.0,113650.0,1.27959022]
[1754199130712,0.2818784,113660.0,113650.0,1.27959022]
[1754199131015,0.2498584,113660.0,113650.0,1.27959022]
[1754199131210,0.2260184,113660.0,113650.0,1.27959022]
[1754199132014,0.2260184,113660.0,113650.0,0.99155733]
[1754199132214,0.2260184,113660.0,113650.0,1.27959022]
[1754199133818,0.2493984,113660.0,113650.0,1.27959022]
[1754199134516,0.2813284,113660.0,113650.0,1.27959022]
[1754199136915,0.2493984,113660.0,113650.0,1.27959022]
[1754199137221,0.1769884,113660.0,113650.0,1.27959022]
[1754199139023,0.2003684,113660.0,113650.0,1.27959022]
[1754199140718,0.2322984,113660.0,113650.0,1.27959022]
[1754199142923,0.2003684,113660.0,113650.0,1.27959022]
[1754199144521,0.1769884,113660.0,113650.0,1.27959022]
[1754199146029,0.2003684,113660.0,113650.0,1.27959022]
[1754199147225,0.2496784,113660.0,113650.0,1.27959022]
[1754199147534,0.2956684,113660.0,113650.0,1.27959022]
[1754199148132,0.2262984,113660.0,113650.0,1.01371022]
[1754199148323,0.2956684,113660.0,113650.0,1.01371022]
[1754199151236,0.2956684,113660.0,113650.0,0.72567733]
[1754199151439,0.2956684,113660.0,113650.0,1.01371022]
[1754199153937,0.2956684,113660.0,113650.0,1.27943022]
[1754199154335,0.2956684,113660.0,113650.0,0.99139733]
[1754199154537,0.2956684,113660.0,113650.0,1.27943022]
[1754199154837,0.2956684,113660.0,113650.0,1.01371022]
[1754199155039,0.2956684,113660.0,113650.0,1.27943022]
[1754199156232,0.2956684,113660.0,113650.0,1.01371022]
[1754199156543,0.2956684,113660.0,113650.0,1.27943022]
[1754199157231,0.2816084,113660.0,113650.0,1.27943022]
[1754199157434,0.2496784,113660.0,113650.0,1.27943022]
[1754199157843,0.0504,113660.0,113650.0,1.27943022]
[1754199158035,0.4265,113670.0,113660.0,0.2941183]
[1754199158440,0.4265,113670.0,113660.0,0.58215119]
[1754199159246,0.4285,113670.0,113660.0,0.58215119]
[1754199159744,0.4285,113670.0,113660.0,0.2941183]
[1754199159943,0.4285,113670.0,113660.0,0.58215119]
[1754199162048,0.4295,113670.0,113660.0,0.58215119]
[1754199162244,0.4295,113670.0,113660.0,0.2941183]
[1754199162544,0.4295,113670.0,113660.0,0.58215119]
[1754199166750,0.71753289,113670.0,113660.0,0.58215119]
[1754199167354,0.71753289,113670.0,113660.0,0.2941183]
[1754199167548,0.71753289,113670.0,113660.0,0.58215119]
[1754199171954,0.4295,113670.0,113660.0,0.58215119]
[1754199172659,0.71753289,113670.0,113660.0,0.58215119]
[1754199173258,0.4295,113670.0,113660.0,0.58215119]
[1754199173556,0.71753289,113670.0,113660.0,0.58215119]
[1754199175262,0.4295,113670.0,113660.0,0.58215119]
[1754199175451,0.71753289,113670.0,113660.0,0.58215119]
[1754199191465,0.4295,113670.0,113660.0,0.58215119]
[1754199192462,0.4295,113670.0,113660.0,0.2941183]
[1754199192666,0.4295,113670.0,113660.0,0.58215119]
[1754199194667,0.4285,113670.0,113660.0,0.58215119]
[1754199195569,0.4295,113670.0,113660.0,0.58215119]
[1754199236308,0.4295,113670.0,113660.0,0.94295119]
[1754199236508,0.4295,113670.0,113660.0,0.6549183]
[1754199236709,0.4295,113670.0,113660.0,0.94295119]
[1754199239106,0.003,113670.0,113660.0,1.23098408]
[1754199239816,0.1789685,113670.0,113660.0,1.23098408]
[1754199242410,0.003,113670.0,113660.0,1.23098408]
[1754199245013,0.1789685,113670.0,113660.0,1.23098408]
[1754199247614,0.1789685,113670.0,113660.0,0.87018408]
[1754199247814,0.1789685,113670.0,113660.0,1.23098408]
[1754199250118,0.003,113670.0,113660.0,1.23098408]
[1754199250919,0.2199364,113690.0,113680.0,0.2955931]
[1754199251116,0.2199364,113690.0,113680.0,0.58362599]
[1754199252017,0.2249364,113690.0,113680.0,0.58362599]
[1754199252212,0.005,113690.0,113680.0,0.94442599]
[1754199254719,0.002,113690.0,113680.0,0.94742599]
[1754199258119,0.3138968,113700.0,113680.0,0.94742599]
[1754199258324,0.3368368,113700.0,113690.0,0.94441049]
[1754199258519,0.2488705,113700.0,113690.0,0.94441049]
[1754199259614,0.2641005,113700.0,113690.0,0.94441049]
[1754199259817,0.2985905,113700.0,113690.0,0.94441049]
[1754199260624,0.2985905,113700.0,113690.0,0.95298384]
[1754199260826,0.3079105,113700.0,113690.0,0.95298384]
[1754199268334,0.2734205,113700.0,113690.0,1.24101673]
[1754199269025,0.05,113700.0,113690.0,1.24101673]
[1754199273632,0.2259221,113700.0,113690.0,1.24101673]
[1754199278234,0.05,113700.0,113690.0,1.24101673]
[1754199290151,0.05,113700.0,113690.0,1.60181673]
[1754199296462,0.05,113700.0,113690.0,1.86729673]
[1754199297662,0.175901,113720.0,113710.0,0.2934866]
[1754199297862,0.175901,113720.0,113710.0,1.20779949]
[1754199298163,0.199641,113720.0,113710.0,1.20779949]
[1754199298759,0.200641,113720.0,113710.0,1.20779949]
[1754199299163,0.176901,113720.0,113710.0,1.20779949]
[1754199299765,0.001,113720.0,113710.0,1.20779949]
[1754199300462,0.002,113720.0,113710.0,1.20779949]
[1754199301057,0.002,113720.0,113710.0,1.49583238]
[1754199301460,0.002,113720.0,113710.0,1.20779949]
[1754199301662,0.002,113720.0,113710.0,1.27794465]
[1754199302463,0.1778911,113720.0,113710.0,1.27794465]
[1754199302963,0.2252911,113720.0,113710.0,0.98991176]
[1754199303176,0.2969111,113720.0,113710.0,1.27794465]
[1754199303556,0.2969111,113720.0,113710.0,0.98991176]
[1754199303865,0.2969111,113720.0,113710.0,1.27794465]
[1754199319277,0.2969111,113720.0,113710.0,0.98991176]
[1754199319571,0.2969111,113720.0,113710.0,1.27794465]
[1754199320867,0.2969111,113720.0,113710.0,1.27850465]
[1754199322672,0.2819911,113720.0,113710.0,1.27850465]
[1754199324680,0.2819911,113720.0,113710.0,0.91770465]
[1754199324872,0.2819911,113720.0,113710.0,1.27850465]
[1754199329878,0.2955511,113720.0,113710.0,1.27850465]
[1754199331682,0.2955511,113720.0,113710.0,0.91770465]
[1754199331880,0.2955511,113720.0,113710.0,1.27850465]
[1754199338088,0.2955511,113720.0,113710.0,0.91770465]
[1754199338287,0.2955511,113720.0,113710.0,1.27850465]
[1754199339990,0.2955511,113720.0,113710.0,0.91770465]
[1754199340287,0.2955511,113720.0,113710.0,1.27850465]
[1754199342589,0.2955511,113720.0,113710.0,0.91770465]
[1754199342789,0.2955511,113720.0,113710.0,1.27850465]
[1754199343194,0.2955511,113720.0,113710.0,0.91770465]
[1754199343393,0.2955511,113720.0,113710.0,1.27850465]
[1754199343690,0.2955511,113720.0,113710.0,1.01246465]
[1754199343893,0.2962611,113720.0,113710.0,0.97449465]
[1754199344091,0.58429399,113720.0,113710.0,1.27722465]
[1754199344288,0.2962611,113720.0,113710.0,1.27722465]
[1754199345890,0.2962611,113720.0,113710.0,0.79858805]
[1754199346093,0.94409399,113720.0,113710.0,0.71761805]
[1754199346299,0.94409399,113720.0,113710.0,0.40607805]
[1754199347095,0.94509399,113720.0,113710.0,0.40607805]
[1754199347995,0.94509399,113720.0,113710.0,0.58198435]
[1754199348204,0.94509399,113720.0,113710.0,0.61641435]
[1754199348702,0.94509399,113720.0,113710.0,0.63056435]
[1754199350602,0.94509399,113720.0,113710.0,0.65346435]
[1754199350996,0.6570611,113720.0,113710.0,0.65346435]
[1754199351196,0.94509399,113720.0,113710.0,0.65346435]
[1754199356695,0.58429399,113720.0,113710.0,0.65346435]
[1754199356901,0.94509399,113720.0,113710.0,0.65346435]
[1754199358006,0.58429399,113720.0,113710.0,0.65346435]
[1754199358209,0.94509399,113720.0,113710.0,0.65346435]